fUSD/lending_fUSD_20250504
["ID","MTS","AMOUNT","RATE_DAILY","PERIOD"]
[359782780,1746342637788,-500.0,0.00019981,2]
[359782781,1746342637797,-500.0,0.00019981,2]
[359782782,1746342637812,-500.0,0.00019981,2]
[359782783,1746342637821,-500.0,0.00019981,2]
[359782784,1746342637830,-500.0,0.00019981,2]
[359782785,1746342637839,-500.0,0.00019981,2]
[359782786,1746342637848,-34.21137152,0.00019981,2]
[359782787,1746342637863,-465.78862848,0.00019981,2]
[359782788,1746342637872,-383.01474875,0.00019981,2]
[359782789,1746342637882,-500.0,0.00019981,2]
[359782790,1746342637891,-500.0,0.00019981,2]
[359782791,1746342637902,-500.0,0.00019981,2]
[359782793,1746342637911,-500.0,0.00019981,2]
[359782794,1746342637921,-500.0,0.00019981,2]
[359782795,1746342637930,-500.0,0.00019981,2]
[359782796,1746342637940,-255.91725681,0.00019981,2]
[359782797,1746342637951,-244.08274319,0.00019981,2]
[359782798,1746342637961,-500.0,0.00019981,2]
[359782799,1746342637969,-500.0,0.00019981,2]
[359782800,1746342637980,-500.0,0.00019981,2]
[359782801,1746342637990,-550.0,0.00019981,2]
[359782802,1746342637999,-294.49327469,0.00019981,2]
[359782803,1746342639732,-205.50672531,0.00019981,2]
[359782804,1746342639742,-500.0,0.00019981,2]
[359782805,1746342639751,-150.0,0.00019981,2]
[359782806,1746342639760,-607.1,0.00019982,2]
[359782807,1746342639769,-450.0,0.00019982,2]
[359782808,1746342639778,-450.0,0.00019982,2]
[359782809,1746342639788,-739.11,0.00019982,2]
[359782810,1746342639797,-450.0,0.00019982,2]
[359782811,1746342639808,-500.0,0.00019982,2]
[359782812,1746342639817,-450.0,0.00019982,2]
[359782813,1746342639826,-150.0,0.00019982,2]
[359782814,1746342639835,-450.0,0.00019982,2]
[359782815,1746342639844,-450.0,0.00019982,2]
[359782816,1746342639853,-387.82959739,0.00019982,2]
[359782817,1746342639863,-659.06,0.00019982,2]
[359782818,1746342639871,-1755.49,0.00019982,2]
[359782819,1746342639880,-940.28,0.00019982,2]
[359782820,1746342639889,-450.0,0.00019982,2]
[359782821,1746342639903,-278.13311498,0.00019982,2]
[359782822,1746342639912,-62713.38,0.00019982,2]
[359782823,1746342639922,-450.0,0.00019982,2]
[359782824,1746342639931,-450.0,0.00019982,2]
[359782825,1746342639941,-532.32903879,0.00019982,2]
[359782826,1746342639951,-450.0,0.00019982,2]
[359782827,1746342639960,-498.54,0.00019982,2]
[359782828,1746342639969,-450.0,0.00019982,2]
[359782829,1746342639980,-3280.52,0.00019982,2]
[359782830,1746342639989,-450.0,0.00019982,2]
[359782831,1746342639998,-2518.08,0.00019982,2]
[359782832,1746342640007,-175.91448904,0.00019982,2]
[359782833,1746342640016,-450.0,0.00019982,2]
[359782834,1746342640025,-450.0,0.00019982,2]
[359782836,1746342640034,-1140.77,0.00019982,2]
[359782837,1746342640043,-537.91,0.00019982,2]
[359782838,1746342640052,-450.0,0.00019982,2]
[359782840,1746342640063,-1447.94,0.00019982,2]
[359782842,1746342640072,-598.69,0.00019982,2]
[359782844,1746342640082,-439.81400919,0.00019982,2]
[359782846,1746342640091,-685.29,0.00019982,2]
[359782847,1746342640100,-450.0,0.00019982,2]
[359782850,1746342640322,-3474.15,0.00019982,2]
[359782851,1746342640332,-852.28,0.00019982,2]
[359782852,1746342640341,-3328.58,0.00019982,2]
[359782853,1746342640351,-526.48,0.00019982,2]
[359782854,1746342640360,-1981.94,0.00019982,2]
[359782855,1746342640369,-450.0,0.00019982,2]
[359782856,1746342640378,-1440.97,0.00019982,2]
[359782857,1746342640387,-450.0,0.00019983,2]
[359782858,1746342640396,-654.72,0.00019983,2]
[359782859,1746342640405,-450.0,0.00019983,2]
[359782860,1746342640414,-525.35,0.00019983,2]
[359782861,1746342640423,-450.0,0.00019983,2]
[359782862,1746342640432,-316.12795279,0.00019983,2]
[359782863,1746342640441,-1396.08,0.00019983,2]
[359782864,1746342640450,-450.0,0.00019983,2]
[359782865,1746342640459,-450.0,0.00019983,2]
[359782866,1746342640468,-836.04,0.00019983,2]
[359782867,1746342640477,-189.03686147,0.00019983,2]
[359782868,1746342640486,-728.07,0.00019983,2]
[359782869,1746342640495,-450.0,0.00019983,2]
[359782870,1746342640504,-450.0,0.00019983,2]
[359782871,1746342640513,-450.0,0.00019983,2]
[359782872,1746342640522,-450.0,0.00019983,2]
[359782873,1746342640531,-450.0,0.00019983,2]
[359782874,1746342640540,-450.0,0.00019983,2]
[359782875,1746342640549,-525.96,0.00019983,2]
[359782876,1746342640559,-450.0,0.00019983,2]
[359782877,1746342640568,-450.0,0.00019983,2]
[359782878,1746342640577,-655.38,0.00019983,2]
[359782879,1746342640587,-450.0,0.00019983,2]
[359782880,1746342640596,-450.0,0.00019983,2]
[359782881,1746342640605,-450.0,0.00019983,2]
[359782882,1746342640614,-576.79,0.00019983,2]
[359782883,1746342640623,-489.85,0.00019983,2]
[359782884,1746342640633,-848.25,0.00019983,2]
[359782885,1746342640642,-450.0,0.00019983,2]
[359782886,1746342640651,-450.0,0.00019983,2]
[359782887,1746342640661,-450.0,0.00019983,2]
[359782888,1746342640671,-490.42,0.00019983,2]
[359782889,1746342640680,-450.0,0.00019983,2]
[359782890,1746342640690,-450.0,0.00019983,2]
[359782891,1746342640699,-450.0,0.00019983,2]
[359782892,1746342640708,-450.0,0.00019983,2]
[359782893,1746342640717,-450.0,0.00019983,2]
[359782894,1746342640727,-216.40502554,0.00019983,2]
[359782895,1746342640736,-450.0,0.00019983,2]
[359782896,1746342640745,-450.0,0.00019983,2]
[359782897,1746342640754,-450.0,0.00019983,2]
[359782898,1746342640763,-1510.05,0.00019983,2]
[359782899,1746342640772,-450.0,0.00019983,2]
[359782900,1746342640782,-663.41,0.00019983,2]
[359782901,1746342640791,-450.0,0.00019983,2]
[359782902,1746342640800,-1364.58,0.00019983,2]
[359782903,1746342640811,-478.01620448,0.00019983,2]
[359782904,1746342640820,-450.0,0.00019983,2]
[359782905,1746342640829,-450.0,0.00019983,2]
[359782906,1746342640838,-450.0,0.00019983,2]
[359782907,1746342640847,-450.0,0.00019983,2]
[359782908,1746342640857,-450.0,0.00019983,2]
[359782909,1746342640866,-450.0,0.00019983,2]
[359782910,1746342640875,-450.0,0.00019983,2]
[359782911,1746342640884,-450.0,0.00019983,2]
[359782912,1746342640895,-450.0,0.00019983,2]
[359782913,1746342640905,-450.0,0.00019983,2]
[359782914,1746342640915,-786.78,0.00019983,2]
[359782915,1746342640924,-450.0,0.00019983,2]
[359782916,1746342640934,-450.0,0.00019983,2]
[359782917,1746342640944,-450.0,0.00019983,2]
[359782918,1746342640954,-450.0,0.00019983,2]
[359782919,1746342640963,-450.0,0.00019983,2]
[359782920,1746342640975,-572.57,0.00019983,2]
[359782921,1746342640985,-450.0,0.00019983,2]
[359782922,1746342640994,-450.0,0.00019983,2]
[359782923,1746342641004,-450.0,0.00019983,2]
[359782924,1746342641014,-450.0,0.00019983,2]
[359782925,1746342641023,-450.0,0.00019983,2]
[359782926,1746342641033,-450.0,0.00019983,2]
[359782927,1746342641043,-450.0,0.00019983,2]
[359782928,1746342641052,-450.0,0.00019983,2]
[359782929,1746342641063,-450.0,0.00019983,2]
[359782930,1746342641073,-450.0,0.00019983,2]
[359782931,1746342641083,-450.0,0.00019983,2]
[359782932,1746342641093,-1367.07,0.00019983,2]
[359782933,1746342641102,-450.0,0.00019983,2]
[359782934,1746342641111,-450.0,0.00019983,2]
[359782935,1746342641120,-450.0,0.00019983,2]
[359782936,1746342641130,-450.0,0.00019983,2]
[359782937,1746342641139,-651.33,0.00019983,2]
[359782938,1746342641149,-508.85,0.00019983,2]
[359782939,1746342641159,-450.0,0.00019983,2]
[359782940,1746342641168,-450.0,0.00019983,2]
[359782941,1746342641177,-450.0,0.00019983,2]
[359782942,1746342641186,-450.0,0.00019983,2]
[359782943,1746342641195,-450.0,0.00019983,2]
[359782944,1746342641205,-450.0,0.00019983,2]
[359782945,1746342641214,-878.01,0.00019983,2]
[359782946,1746342641223,-450.0,0.00019983,2]
[359782947,1746342641232,-450.0,0.00019983,2]
[359782948,1746342641242,-370.05556011,0.00019983,2]
[359782949,1746342641253,-450.0,0.00019983,2]
[359782950,1746342641263,-574.59,0.00019983,2]
[359782951,1746342641272,-450.0,0.00019983,2]
[359782952,1746342641281,-450.0,0.00019983,2]
[359782953,1746342641290,-450.0,0.00019983,2]
[359782954,1746342641300,-450.0,0.00019983,2]
[359782955,1746342641311,-452.08,0.00019983,2]
[359782956,1746342641321,-450.0,0.00019983,2]
[359782957,1746342641331,-450.0,0.00019983,2]
[359782958,1746342641340,-450.0,0.00019983,2]
[359782959,1746342641349,-1113.43,0.00019983,2]
[359782960,1746342641359,-450.0,0.00019983,2]
[359782961,1746342641368,-542.49,0.00019983,2]
[359782962,1746342641378,-450.0,0.00019983,2]
[359782963,1746342641387,-450.0,0.00019983,2]
[359782964,1746342641397,-450.0,0.00019983,2]
[359782965,1746342641406,-450.0,0.00019983,2]
[359782966,1746342641416,-623.77,0.00019983,2]
[359782967,1746342641425,-450.0,0.00019983,2]
[359782968,1746342641435,-450.0,0.00019984,2]
[359782969,1746342641445,-450.0,0.00019984,2]
[359782970,1746342641455,-450.0,0.00019984,2]
[359782971,1746342641465,-450.0,0.00019984,2]
[359782972,1746342641474,-450.0,0.00019984,2]
[359782973,1746342641483,-561.65,0.00019984,2]
[359782974,1746342641492,-3780.26,0.00019984,2]
[359782975,1746342641502,-1213.01,0.00019984,2]
[359782976,1746342641512,-450.0,0.00019984,2]
[359782977,1746342641521,-2932.97,0.00019984,2]
[359782978,1746342641531,-450.0,0.00019984,2]
[359782979,1746342641541,-450.0,0.00019984,2]
[359782980,1746342641551,-450.0,0.00019984,2]
[359782981,1746342641562,-450.0,0.00019984,2]
[359782982,1746342641572,-450.0,0.00019984,2]
[359782983,1746342641582,-450.0,0.00019985,2]
[359782984,1746342641591,-450.0,0.00019985,2]
[359782985,1746342641601,-2353.93,0.00019985,2]
[359782986,1746342641610,-56272.67,0.00019985,2]
[359782987,1746342641619,-950.41,0.00019985,2]
[359782988,1746342641629,-2922.02,0.00019985,2]
[359782989,1746342641638,-13595.63,0.00019985,2]
[359782990,1746342641648,-898.76,0.00019985,2]
[359782991,1746342641657,-450.0,0.00019985,2]
[359782992,1746342641667,-7709.36,0.00019985,2]
[359782993,1746342641676,-562.03,0.00019985,2]
[359782994,1746342641686,-508.17,0.00019985,2]
[359782995,1746342641695,-450.0,0.00019985,2]
[359782996,1746342641705,-842.65,0.00019985,2]
[359782997,1746342641715,-450.0,0.00019985,2]
[359782998,1746342641724,-450.0,0.00019985,2]
[359782999,1746342641734,-450.0,0.00019985,2]
[359783000,1746342641743,-464.64,0.00019985,2]
[359783001,1746342641753,-84303.1236866,0.00019986,2]
[359783002,1746342641762,-53444.236733,0.00019986,2]
[359783003,1746342641771,-1245.9095535,0.00019986,2]
[359783004,1746342641780,-7171.495009,0.00019986,2]
[359783005,1746342641789,-6292.0571489,0.00019986,2]
[359783006,1746342641799,-500.0,0.00019999,2]
[359783007,1746342641808,-283.08598319,0.00019999,2]
[359783008,1746342641821,-537.04648005,0.00019999,2]
[359783009,1746342641831,-500.0,0.00019999,2]
[359783010,1746342641840,-500.0,0.00019999,2]
[359783011,1746342641849,-311.93520587,0.00019999,2]
[359783012,1746342641859,-478.92,0.00019999,2]
[359783013,1746342641869,-161.15811215,0.00019999,2]
[359783014,1746342641878,-390.12653757,0.00019999,2]
[359783015,1746342641887,-734.0,0.00019999,2]
[359783016,1746342641900,-571.03405357,0.0002,2]
[359783017,1746342641912,-3147719.29475892,0.0002,2]
[359783018,1746342641921,-181068.60594574,0.0002,2]
[359783019,1746342641935,-2554.97541835,0.0002,2]
[359783020,1746342641947,-1441.335,0.0002,2]
[359783021,1746342641967,-947542.3884529,0.0002,2]
[359783022,1746342641978,-257.9672612,0.0002,4]
[359783023,1746342641987,-1236083.46166999,0.0002,2]
[359783024,1746342641996,-1202225.3760254,0.0002,2]
[359783025,1746342642005,-500.0,0.0002,2]
[359783026,1746342642015,-962956.80850573,0.0002,2]
[359783027,1746342642024,-159.88,0.0002,2]
[359783028,1746342642033,-5000.0,0.0002,2]
[359783029,1746342642042,-2425148.30410086,0.0002,2]
[359783030,1746342642052,-79280.79106191,0.0002,4]
[359783031,1746342642064,-399553.64048205,0.0002,2]
[359783032,1746342642073,-129892.29881476,0.0002,2]
[359783033,1746342642082,-1935460.75308294,0.0002,2]
[359783034,1746342642092,-110616.4688399,0.0002,2]
[359783047,1746342642468,-548.83,0.00019983,2]
[359783048,1746342642478,-144.89574583,0.0002,2]
[359783049,1746342642495,-769.26968033,0.0002,2]
[359783050,1746342642505,-4838.14010917,0.0002,2]
[359783051,1746342642523,-883.76518144,0.0002,2]
[359783052,1746342642711,-1178.25700784,0.0002,2]
[359783056,1746342643544,-1246.58172743,0.0002,2]
[359783061,1746342713842,158.34822,0.0002,23]
[359783062,1746342773777,158.34824,0.0002,23]
[359783083,1746343292969,150.050416,0.0003,30]
[359783084,1746343332662,150.050416,0.0003,30]
[359783085,1746343353066,150.050416,0.0003,31]
[359783086,1746343365165,17979.49,0.00019001,2]
[359783096,1746343518910,1000.0,0.00018988,2]
[359783099,1746343542109,3193.38761873,0.000198,5]
[359783100,1746343542132,100000.0,0.000198,5]
[359783101,1746343542157,88628.17220295,0.000198,5]
[359783102,1746343554706,151.53,0.00018988,2]
[359783103,1746343554988,151.53,0.00018998,2]
[359783104,1746343555187,151.53,0.00019009,2]
[359783105,1746343555336,631.62,0.0001707,2]
[359783106,1746343555463,151.53,0.00019019,2]
[359783107,1746343555525,631.62,0.00019334,2]
[359783108,1746343555669,151.53,0.0001903,2]
[359783109,1746343555874,151.53,0.0001904,2]
[359783110,1746343556094,151.53,0.00019051,2]
[359783111,1746343556304,68.78297599,0.00019061,2]
[359783112,1746343556330,82.74702401,0.00019061,2]
[359783113,1746343556494,151.53,0.00019072,2]
[359783114,1746343556708,151.53,0.00019082,2]
[359783115,1746343575681,-163.9893417,0.00019799,2]
[359783116,1746343575702,-2.5906583,0.00019799,2]
[359783117,1746343582502,-166.58,0.00019799,2]
[359783118,1746343583305,-166.58,0.00019799,2]
[359783119,1746343585540,-163.9893417,0.00019799,2]
[359783120,1746343594217,-200.0,0.00019799,2]
[359783121,1746343598646,-300.26,0.00019799,2]
[359783122,1746343598669,-163.9893418,0.00019799,2]
[359783123,1746343598692,-250.0,0.00019804,2]
[359783124,1746343598715,-200.0,0.00019804,2]
[359783125,1746343598738,-200.0,0.00019829,2]
[359783126,1746343598760,-125.6106582,0.00019829,2]
[359783127,1746343604486,-163.9893418,0.00019829,2]
[359783129,1746343614277,-262.23254631,0.00019829,2]
[359783130,1746343623197,-157.80154619,0.00019829,2]
[359783152,1746343670842,250.0,0.00017,2]
[359783153,1746343671906,300.0,0.00019,2]
[359783154,1746343720856,302.0,0.00030137,120]
[359783170,1746343831582,-351.92574701,0.0001979,2]
[359783172,1746343831596,-2210.41379545,0.0001979,2]
[359783177,1746343831724,-415.66045754,0.0001979,2]
[359783178,1746343831734,-163.9893418,0.00019799,2]
[359783179,1746343831743,-156.50925766,0.0001986,2]
[359783180,1746343831754,-93.49074234,0.0001986,2]
[359783181,1746343831764,-200.0,0.0001986,2]
[359783182,1746343831773,-207.4,0.00019871,2]
[359783183,1746343831782,-200.0,0.00019874,2]
[359783184,1746343831792,-1127.10925766,0.00019882,2]
[359783185,1746343831803,-72.89074234,0.00019882,2]
[359783186,1746343831812,-300.0,0.00019882,2]
[359783187,1746343831822,-14012.968,0.00019883,2]
[359783188,1746343831831,-181.83660268,0.00019885,2]
[359783189,1746343831840,-166.0610156,0.00019886,2]
[359783190,1746343831850,-850.0,0.00019899,2]
[359783191,1746343831859,-279.117,0.000199,2]
[359783192,1746343831868,-9719.7124648,0.000199,2]
[359783193,1746343831879,-331.14851368,0.000199,2]
[359783194,1746343831902,-2071.01896674,0.000199,2]
[359783195,1746343831911,-173.61940952,0.000199,2]
[359783196,1746343831921,-1000.0,0.000199,2]
[359783197,1746343831930,-2472.57698828,0.000199,2]
[359783199,1746343831940,-170.1164078,0.000199,2]
[359783201,1746343831949,-474.467738,0.000199,2]
[359783203,1746343831958,-12500.0,0.00019962,2]
[359783205,1746343831967,-1773.65870011,0.00019971,2]
[359783207,1746343831978,-965.37,0.00019971,2]
[359783211,1746343837764,-4117.42694455,0.00019971,2]
[359783212,1746343837775,-5643.54435534,0.00019971,2]
[359783213,1746343837786,-500.0,0.00019973,2]
[359783214,1746343837796,-151.0,0.00019974,2]
[359783215,1746343837805,-1377.843,0.00019979,2]
[359783216,1746343837814,-182.59880772,0.00019979,2]
[359783217,1746343837824,-11775.08383694,0.00019979,2]
[359783218,1746343837837,-724.91616306,0.00019979,2]
[359783219,1746343837849,-500.0,0.00019984,2]
[359783220,1746343837859,-150.0,0.00019984,2]
[359783221,1746343837868,-450.0,0.00019984,2]
[359783222,1746343837877,-628.07,0.00019984,2]
[359783223,1746343837886,-362.31383694,0.00019984,2]
[359783224,1746343837897,-87.68616306,0.00019984,2]
[359783225,1746343837906,-196.86866702,0.00019984,2]
[359783226,1746343837918,-253.13133298,0.00019984,2]
[359783227,1746343837927,-450.0,0.00019984,2]
[359783228,1746343837936,-450.0,0.00019984,2]
[359783229,1746343837945,-812.91,0.00019984,2]
[359783230,1746343837954,-450.0,0.00019984,2]
[359783231,1746343837963,-469.44,0.00019984,2]
[359783232,1746343837975,-450.0,0.00019984,2]
[359783233,1746343837987,-450.0,0.00019984,2]
[359783234,1746343838002,-450.0,0.00019984,2]
[359783236,1746343838018,-450.0,0.00019984,2]
[359783238,1746343838028,-157.2506168,0.00019984,2]
[359783240,1746343838040,-292.7493832,0.00019984,2]
[359783241,1746343838049,-450.0,0.00019984,2]
[359783243,1746343838058,-450.0,0.00019984,2]
[359783244,1746343838068,-450.0,0.00019984,2]
[359783245,1746343838077,-1447.13,0.00019984,2]
[359783246,1746343838086,-450.0,0.00019984,2]
[359783247,1746343838095,-635.77,0.00019984,2]
[359783248,1746343838104,-1307.72,0.00019984,2]
[359783249,1746343838113,-450.0,0.00019984,2]
[359783250,1746343838122,-450.0,0.00019984,2]
[359783251,1746343838132,-708.32,0.00019984,2]
[359783252,1746343838141,-450.0,0.00019984,2]
[359783253,1746343838150,-631.6,0.00019984,2]
[359783254,1746343838160,-1682.34,0.00019984,2]
[359783255,1746343838169,-450.0,0.00019984,2]
[359783256,1746343838178,-450.0,0.00019984,2]
[359783257,1746343838187,-450.0,0.00019984,2]
[359783258,1746343838196,-450.0,0.00019984,2]
[359783259,1746343838205,-450.0,0.00019984,2]
[359783260,1746343838216,-450.0,0.00019984,2]
[359783261,1746343838226,-450.0,0.00019984,2]
[359783262,1746343838235,-450.0,0.00019984,2]
[359783263,1746343838245,-561.65,0.00019984,2]
[359783264,1746343838254,-450.0,0.00019984,2]
[359783266,1746343838264,-3143.84,0.00019984,2]
[359783268,1746343838274,-500.0,0.00019984,2]
[359783269,1746343838283,-2338.05569978,0.00019984,2]
[359783282,1746343839991,-1442.20430022,0.00019984,2]
[359783283,1746343840000,-1213.01,0.00019984,2]
[359783284,1746343840009,-450.0,0.00019984,2]
[359783285,1746343840018,-515.5,0.00019984,2]
[359783286,1746343840027,-450.0,0.00019984,2]
[359783287,1746343840037,-1387.61,0.00019984,2]
[359783288,1746343840046,-450.0,0.00019984,2]
[359783289,1746343840055,-2932.97,0.00019984,2]
[359783290,1746343840064,-450.0,0.00019984,2]
[359783291,1746343840073,-816.77,0.00019984,2]
[359783292,1746343840083,-450.0,0.00019984,2]
[359783293,1746343840092,-500.0,0.00019984,2]
[359783294,1746343840101,-504.55,0.00019984,2]
[359783295,1746343840110,-150.0,0.00019984,2]
[359783296,1746343840120,-450.0,0.00019984,2]
[359783297,1746343840129,-450.0,0.00019984,2]
[359783298,1746343840138,-450.0,0.00019984,2]
[359783299,1746343840147,-1380.93,0.00019984,2]
[359783300,1746343840157,-450.0,0.00019984,2]
[359783301,1746343840166,-330.04417946,0.00019985,2]
[359783302,1746343840175,-450.0,0.00019985,2]
[359783303,1746343840184,-450.0,0.00019985,2]
[359783304,1746343840193,-1355.29,0.00019985,2]
[359783305,1746343840203,-450.0,0.00019985,2]
[359783306,1746343840212,-450.0,0.00019985,2]
[359783307,1746343840221,-450.0,0.00019985,2]
[359783308,1746343840230,-450.0,0.00019985,2]
[359783309,1746343840240,-552.75,0.00019985,2]
[359783310,1746343840249,-450.0,0.00019985,2]
[359783311,1746343840258,-450.0,0.00019985,2]
[359783312,1746343840267,-469.98,0.00019985,2]
[359783313,1746343840276,-450.0,0.00019985,2]
[359783314,1746343840285,-450.0,0.00019985,2]
[359783315,1746343840295,-450.0,0.00019985,2]
[359783316,1746343840304,-450.0,0.00019985,2]
[359783317,1746343840314,-450.0,0.00019985,2]
[359783318,1746343840324,-450.0,0.00019985,2]
[359783319,1746343840335,-450.0,0.00019985,2]
[359783320,1746343840345,-538.62,0.00019985,2]
[359783321,1746343840354,-450.0,0.00019985,2]
[359783322,1746343840363,-450.0,0.00019985,2]
[359783323,1746343840373,-450.0,0.00019985,2]
[359783324,1746343840382,-450.0,0.00019985,2]
[359783325,1746343840391,-487.0,0.00019985,2]
[359783326,1746343840401,-450.0,0.00019985,2]
[359783327,1746343840412,-450.0,0.00019985,2]
[359783328,1746343840421,-450.0,0.00019985,2]
[359783329,1746343840431,-450.0,0.00019985,2]
[359783330,1746343840441,-450.0,0.00019985,2]
[359783331,1746343840451,-807.54,0.00019985,2]
[359783332,1746343840461,-450.0,0.00019985,2]
[359783333,1746343840470,-450.0,0.00019985,2]
[359783334,1746343840479,-450.0,0.00019985,2]
[359783335,1746343840489,-450.0,0.00019985,2]
[359783336,1746343840499,-450.0,0.00019985,2]
[359783337,1746343840508,-450.0,0.00019985,2]
[359783338,1746343840518,-450.0,0.00019985,2]
[359783339,1746343840527,-754.0,0.00019985,2]
[359783340,1746343840536,-450.0,0.00019985,2]
[359783341,1746343840546,-450.0,0.00019985,2]
[359783342,1746343840555,-450.0,0.00019985,2]
[359783343,1746343840565,-627.44,0.00019985,2]
[359783344,1746343840574,-450.0,0.00019985,2]
[359783345,1746343840583,-450.0,0.00019985,2]
[359783347,1746343840593,-332.78969886,0.00019985,2]
[359783349,1746343840602,-450.0,0.00019985,2]
[359783351,1746343840611,-548.71,0.00019985,2]
[359783353,1746343840621,-450.0,0.00019985,2]
[359783354,1746343840630,-450.0,0.00019985,2]
[359783356,1746343840640,-608.2,0.00019985,2]
[359783358,1746343840649,-307.31363188,0.00019985,2]
[359783359,1746343840658,-53927.98,0.00019985,2]
[359783360,1746343840667,-450.0,0.00019985,2]
[359783361,1746343840675,-503.46,0.00019985,2]
[359783362,1746343840684,-910.81,0.00019985,2]
[359783363,1746343840693,-450.0,0.00019985,2]
[359783364,1746343840703,-450.0,0.00019985,2]
[359783365,1746343840711,-450.0,0.00019985,2]
[359783366,1746343840720,-2800.27,0.00019985,2]
[359783367,1746343840729,-450.0,0.00019985,2]
[359783368,1746343840738,-450.0,0.00019985,2]
[359783369,1746343840747,-450.0,0.00019985,2]
[359783370,1746343840756,-13029.14,0.00019985,2]
[359783371,1746343840765,-450.0,0.00019985,2]
[359783372,1746343840774,-450.0,0.00019985,2]
[359783373,1746343840783,-861.31,0.00019985,2]
[359783374,1746343840792,-450.0,0.00019985,2]
[359783375,1746343840802,-450.0,0.00019985,2]
[359783376,1746343840811,-450.0,0.00019985,2]
[359783377,1746343840820,-450.0,0.00019985,2]
[359783378,1746343840830,-450.0,0.00019985,2]
[359783379,1746343840839,-7388.14,0.00019985,2]
[359783380,1746343840850,-1398.61,0.00019985,2]
[359783381,1746343840859,-450.0,0.00019985,2]
[359783382,1746343841068,-450.0,0.00019985,2]
[359783383,1746343841078,-1310.11,0.00019985,2]
[359783384,1746343841087,-624.2,0.00019985,2]
[359783385,1746343841096,-450.0,0.00019985,2]
[359783386,1746343841105,-450.0,0.00019985,2]
[359783387,1746343841114,-450.0,0.00019985,2]
[359783388,1746343841124,-801.2,0.00019985,2]
[359783389,1746343841133,-450.0,0.00019985,2]
[359783390,1746343841142,-450.0,0.00019985,2]
[359783391,1746343841151,-487.64,0.00019985,2]
[359783392,1746343841160,-450.0,0.00019985,2]
[359783393,1746343841169,-697.74,0.00019985,2]
[359783394,1746343841178,-60100.32,0.00019985,2]
[359783395,1746343841187,-841.43,0.00019985,2]
[359783396,1746343841197,-450.0,0.00019985,2]
[359783397,1746343841206,-450.0,0.00019985,2]
[359783398,1746343841215,-450.0,0.00019985,2]
[359783399,1746343841225,-450.0,0.00019985,2]
[359783400,1746343841234,-465.14475671,0.00019985,2]
[359783401,1746343841243,-450.0,0.00019985,2]
[359783402,1746343841253,-477.77,0.00019985,2]
[359783403,1746343841262,-450.0,0.00019985,2]
[359783404,1746343841271,-550.64,0.00019985,2]
[359783405,1746343841281,-450.0,0.00019985,2]
[359783406,1746343841291,-450.0,0.00019985,2]
[359783407,1746343841301,-450.0,0.00019985,2]
[359783408,1746343841311,-450.0,0.00019985,2]
[359783409,1746343841321,-2413.16,0.00019985,2]
[359783410,1746343841331,-450.0,0.00019985,2]
[359783411,1746343841343,-450.0,0.00019985,2]